bitfinex/quotes_BTCUSD_20260110
["timestamp","ask_amount","ask_price","bid_price","bid_amount"]
[1768043793363,0.02204,90788.0,90779.0,0.01101576]
[1768043793543,0.02204,90788.0,90778.0,0.01101588]
[1768043793748,0.03305612,90788.0,90777.0,0.011016]
[1768043793953,0.03305612,90788.0,90772.0,0.03305661]
[1768043794152,0.03305612,90788.0,90777.0,0.011016]
[1768043794575,0.03305612,90788.0,90778.0,0.01101588]
[1768043796835,0.03305612,90788.0,90774.0,0.04886413]
[1768043797043,0.03305612,90788.0,90777.0,0.011016]
[1768043797345,0.03305612,90788.0,90777.0,0.01097077]
[1768043797542,0.03305612,90788.0,90778.0,0.01101588]
[1768043798090,0.03305612,90788.0,90777.0,0.01081931]
[1768043798402,0.03305612,90788.0,90778.0,0.01101588]
[1768043798626,0.03305612,90788.0,90780.0,0.01101564]
[1768043798815,0.02204,90788.0,90783.0,0.05887765]
[1768043798996,0.02204,90788.0,90783.0,0.04786238]
[1768043799195,0.02204,90788.0,90783.0,0.05887765]
[1768043799453,0.02204,90788.0,90784.0,0.01101515]
[1768043800223,7.736e-05,90791.0,90788.0,0.01101467]
[1768043800410,0.02211736,90791.0,90788.0,0.01101467]
[1768043800611,7.736e-05,90791.0,90790.0,0.05507214]
[1768043800900,0.04831064,90791.0,90790.0,0.05507214]
[1768043801193,0.04831064,90791.0,90788.0,0.06608752]
[1768043801341,0.04831064,90791.0,90788.0,0.01101467]
[1768043801758,0.04831064,90791.0,90789.0,0.05507275]
[1768043801957,0.04831064,90791.0,90790.0,0.05507214]
[1768043802162,0.04831064,90791.0,90788.0,0.01101467]
[1768043802163,0.04831064,90791.0,90789.0,0.05507264]
[1768043803632,1e-08,90791.0,90790.0,0.05507214]
[1768043804178,1e-08,90791.0,90788.0,0.01101467]
[1768043804381,1e-08,90791.0,90789.0,0.0550278]
[1768043804779,1e-08,90791.0,90788.0,0.01101467]
[1768043804982,1e-08,90791.0,90788.0,0.06608799]
[1768043805439,1e-08,90791.0,90788.0,0.01101467]
[1768043805958,1e-08,90791.0,90787.0,0.01101479]
[1768043806159,0.02204,90795.0,90788.0,0.01101467]
[1768043806374,0.02208257,90795.0,90787.0,0.01101479]
[1768043806581,0.02208257,90795.0,90788.0,0.01101467]
[1768043807503,0.02208257,90795.0,90789.0,0.01101455]
[1768043807655,0.02208257,90795.0,90789.0,0.01096932]
[1768043809566,0.02208257,90795.0,90787.0,0.01101479]
[1768043809947,0.02208257,90795.0,90786.0,0.06608902]
[1768043810310,0.02208257,90795.0,90788.0,0.01101467]
[1768043810448,0.02208257,90795.0,90787.0,0.01101479]
[1768043810962,0.000999,90787.0,90785.0,0.05887741]
[1768043811168,0.02208257,90795.0,90786.0,0.01101491]
[1768043811699,0.02208257,90795.0,90785.0,0.05887741]
[1768043811902,0.02208257,90795.0,90786.0,0.01101491]
[1768043812231,0.02208257,90795.0,90785.0,0.04786238]
[1768043812347,0.000999,90786.0,90785.0,0.05887741]
[1768043812748,0.02208257,90795.0,90785.0,0.05887741]
[1768043813357,0.02208257,90795.0,90785.0,0.04786238]
[1768043813607,0.02208257,90795.0,90785.0,0.05887741]
[1768043814026,4.257e-05,90795.0,90785.0,0.01101503]
[1768043818086,4.257e-05,90795.0,90786.0,0.01101491]
[1768043818263,4.257e-05,90795.0,90785.0,0.01101503]
[1768043818651,4.257e-05,90795.0,90786.0,0.01101491]
[1768043822555,4.257e-05,90795.0,90787.0,0.01101479]
[1768043822958,4.257e-05,90795.0,90788.0,0.01101467]
[1768043823159,4.257e-05,90795.0,90787.0,0.01101479]
[1768043823375,4.257e-05,90795.0,90788.0,0.01101467]
[1768043825474,4.257e-05,90795.0,90788.0,0.01096944]
[1768043826084,4.257e-05,90795.0,90788.0,0.01101467]
[1768043828052,4.257e-05,90795.0,90789.0,0.01101455]
[1768043828293,4.257e-05,90795.0,90790.0,0.01101442]
[1768043828490,4.257e-05,90795.0,90791.0,0.04864543]
[1768043828932,4.257e-05,90795.0,90793.0,0.04864543]
[1768043831229,4.257e-05,90795.0,90793.0,0.04860048]
[1768043833818,4.257e-05,90795.0,90791.0,0.0110143]
[1768043834050,4.257e-05,90795.0,90791.0,0.05965973]
[1768043835240,4.257e-05,90795.0,90792.0,0.01101418]
[1768043835386,4.257e-05,90795.0,90793.0,0.04864543]
[1768043835771,4.257e-05,90795.0,90793.0,0.04849399]
[1768043842069,4.257e-05,90795.0,90791.0,0.0110143]
[1768043842411,4.257e-05,90795.0,90791.0,0.05965973]
[1768043842817,4.257e-05,90795.0,90791.0,0.04864543]
[1768043843020,4.257e-05,90795.0,90791.0,0.05965973]
[1768043843428,4.257e-05,90795.0,90791.0,0.04864543]
[1768043844061,4.257e-05,90795.0,90792.0,0.04864543]
[1768043844659,4.257e-05,90795.0,90792.0,0.05965961]
[1768043845473,4.257e-05,90795.0,90792.0,0.05961466]
[1768043852140,4.257e-05,90795.0,90792.0,0.04860048]
[1768043852338,4.257e-05,90795.0,90792.0,0.05961466]
[1768043853129,4.257e-05,90795.0,90792.0,0.01101418]
[1768043853328,4.257e-05,90795.0,90791.0,0.0110143]
[1768043853927,4.257e-05,90795.0,90791.0,0.05681018]
[1768043854349,4.257e-05,90795.0,90792.0,0.01101418]
[1768043855273,4.257e-05,90795.0,90791.0,0.04579588]
[1768043855449,4.257e-05,90795.0,90791.0,0.05681018]
[1768043855632,4.257e-05,90795.0,90792.0,0.01101418]
[1768043856251,4.257e-05,90795.0,90791.0,0.05681018]
[1768043856464,4.257e-05,90795.0,90791.0,0.04579588]
[1768043856794,4.257e-05,90795.0,90791.0,0.0110143]
[1768043857288,4.257e-05,90795.0,90790.0,0.0568103]
[1768043857486,4.257e-05,90795.0,90791.0,0.0110143]
[1768043858601,4.257e-05,90795.0,90792.0,0.01101418]
[1768043862676,4.257e-05,90795.0,90792.0,0.01096922]
[1768043863595,4.257e-05,90795.0,90792.0,0.06603993]
[1768043863796,4.257e-05,90795.0,90792.0,0.01096922]
[1768043864195,4.257e-05,90795.0,90790.0,0.0568103]
[1768043864396,4.257e-05,90795.0,90792.0,0.01101418]
[1768043867254,4.257e-05,90795.0,90791.0,0.0110143]
[1768043867634,4.257e-05,90795.0,90791.0,0.05681018]
[1768043868045,4.257e-05,90795.0,90792.0,0.01101418]
[1768043869297,0.00021069,90797.0,90794.0,0.01101394]
[1768043869409,0.00021069,90797.0,90793.0,0.01101406]
[1768043869846,0.00021069,90797.0,90789.0,0.01101455]
[1768043870432,0.00021069,90797.0,90790.0,0.01101442]
[1768043871077,0.00021069,90797.0,90789.0,0.01101455]
[1768043871276,0.00021069,90797.0,90790.0,0.01101442]
[1768043871877,0.00021069,90797.0,90791.0,0.0110143]
[1768043872261,0.00021069,90797.0,90789.0,0.01101455]
[1768043872461,0.00021069,90797.0,90788.0,0.01101467]
[1768043872662,0.00021069,90797.0,90789.0,0.01101455]
[1768043872858,0.00021069,90797.0,90788.0,0.01101467]
[1768043873063,0.00021069,90797.0,90789.0,0.01101455]
[1768043873468,0.00021069,90797.0,90788.0,0.01101467]
[1768043873876,0.00021069,90797.0,90787.0,0.01101479]
[1768043874077,0.00021069,90797.0,90785.0,0.01101503]
[1768043874277,0.01122426,90797.0,90783.0,0.03305527]
[1768043874606,0.01122426,90797.0,90784.0,0.01101515]
[1768043874748,0.01122426,90797.0,90783.0,0.02204]
[1768043874943,0.00021069,90797.0,90783.0,0.03305527]
[1768043875199,0.01122426,90797.0,90783.0,0.01101527]
[1768043875358,0.00021069,90797.0,90784.0,0.01101345]
[1768043875563,0.01122426,90797.0,90784.0,0.01101345]
[1768043875788,0.00021069,90797.0,90784.0,0.01101345]
[1768043875967,0.01122426,90797.0,90784.0,0.01101345]
[1768043877027,0.0110137,90796.0,90784.0,0.01101345]
[1768043877207,0.01122426,90797.0,90784.0,0.01101345]
[1768043879160,0.00021069,90797.0,90784.0,0.0220286]
[1768043879364,0.01122426,90797.0,90784.0,0.01101345]
[1768043879922,0.01122426,90797.0,90784.0,0.0220286]
[1768043881517,0.00021069,90797.0,90784.0,0.0220286]
[1768043882620,0.01122426,90797.0,90784.0,0.01101345]
[1768043883001,0.00021069,90797.0,90784.0,0.0220286]
[1768043883405,0.0110137,90796.0,90784.0,0.01101345]
[1768043884012,0.0110143,90791.0,90784.0,0.01001445]
[1768043884269,0.06608611,90791.0,90780.0,0.04975429]
[1768043884405,0.05507414,90787.0,90775.0,0.04893073]
[1768043884606,0.01101503,90785.0,90778.0,0.03305626]
[1768043884813,0.01101503,90785.0,90771.0,0.01101673]
[1768043884814,0.01101479,90787.0,90772.0,0.01101661]
[1768043885035,0.01101479,90787.0,90773.0,0.01101649]
[1768043885192,0.06608904,90787.0,90777.0,0.01101503]
[1768043885595,0.06608904,90787.0,90772.0,0.01101661]
[1768043885805,0.01101479,90787.0,90773.0,0.01101673]
[1768043886231,0.01101491,90786.0,90773.0,0.02203322]
[1768043886776,0.01101491,90786.0,90773.0,0.01101673]
[1768043886973,0.01101491,90786.0,90772.0,0.01101661]
[1768043887417,0.01101491,90786.0,90773.0,0.01101673]
[1768043887728,0.01101491,90786.0,90773.0,0.02203322]
[1768043888521,0.01101491,90786.0,90773.0,0.01101649]
[1768043888676,0.01101491,90786.0,90774.0,0.02203322]
[1768043889083,0.01101527,90783.0,90774.0,0.02203322]
[1768043889242,0.01101515,90784.0,90770.0,0.27906773]
[1768043889562,0.01101515,90784.0,90771.0,0.01101673]
[1768043889902,0.01101503,90785.0,90771.0,0.01101673]
[1768043890318,0.06609026,90785.0,90770.0,0.08249687]
[1768043890450,0.13215568,90780.0,90770.0,0.08249687]
[1768043890685,0.13215568,90780.0,90770.0,0.03356614]
[1768043890888,0.14317132,90780.0,90770.0,0.03356614]
[1768043891090,0.13215568,90780.0,90770.0,0.03356614]
[1768043892845,0.14317132,90780.0,90770.0,0.03356614]
[1768043893424,0.01101576,90779.0,90770.0,0.03356614]
[1768043893649,0.14317132,90780.0,90770.0,0.03356614]
[1768043894030,0.01101576,90779.0,90770.0,0.03356614]
[1768043894590,0.14317132,90780.0,90770.0,0.03356614]
[1768043896414,0.13215568,90780.0,90770.0,0.03356614]
[1768043896764,0.14317132,90780.0,90770.0,0.03356614]
[1768043897036,0.14317132,90780.0,90770.0,0.00050627]
[1768043898291,0.01101576,90779.0,90770.0,0.00050627]
[1768043898438,0.14317132,90780.0,90770.0,0.00050627]
[1768043898439,0.13215568,90780.0,90770.0,0.00050627]
[1768043900596,0.14317132,90780.0,90770.0,0.00050627]
[1768043901495,0.13215568,90780.0,90770.0,0.00050627]
[1768043901940,0.14317132,90780.0,90770.0,0.00050627]
[1768043902110,0.18908091,90780.0,90770.0,0.00050627]
[1768043902310,0.04590959,90779.0,90770.0,0.00050627]
[1768043903513,0.05692535,90779.0,90770.0,0.00050627]
[1768043903951,0.01101576,90779.0,90770.0,0.00050627]
[1768043904096,0.14317132,90780.0,90770.0,0.00050627]
[1768043904596,0.13215568,90780.0,90770.0,0.00050627]
[1768043909545,0.13215568,90780.0,90770.0,0.00085752]
[1768043921614,0.14317132,90780.0,90770.0,0.00085752]
[1768043921815,0.13215568,90780.0,90770.0,0.00085752]
[1768043922222,0.13215568,90780.0,90766.0,0.01101734]
[1768043922429,0.04584364,90779.0,90766.0,0.01101734]
[1768043922632,0.0568594,90779.0,90766.0,0.01101734]
[1768043923220,0.0568594,90779.0,90765.0,0.01110797]
[1768043923948,0.04584364,90779.0,90766.0,0.01101734]
[1768043925944,0.04584364,90779.0,90767.0,0.01101721]
[1768043926311,0.04584364,90779.0,90766.0,0.01101734]
[1768043926724,0.04584364,90779.0,90767.0,0.01101721]
[1768043929715,0.04584364,90779.0,90766.0,0.01101734]
[1768043931479,0.04584364,90779.0,90767.0,0.01101721]
[1768043932407,0.04584364,90779.0,90766.0,0.01101734]
[1768043932720,0.04584364,90779.0,90767.0,0.01101721]
[1768043934497,0.04584364,90779.0,90766.0,0.01101734]
[1768043934723,0.04584364,90779.0,90767.0,0.01101721]
[1768043936041,0.04584364,90779.0,90768.0,0.01101709]
[1768043936405,0.04584364,90779.0,90767.0,0.01101721]
[1768043938464,0.04584364,90779.0,90768.0,0.01101709]
[1768043938646,0.04584364,90779.0,90767.0,0.01101721]
[1768043938964,0.04584364,90779.0,90768.0,0.01101709]
[1768043939128,0.04584364,90779.0,90767.0,0.01101721]
[1768043942381,0.04584364,90779.0,90768.0,0.01101709]
[1768043943087,0.04584364,90779.0,90767.0,0.01105978]
[1768043944596,0.04584364,90779.0,90768.0,0.01101709]
[1768043945097,0.04584364,90779.0,90767.0,0.01105978]
[1768043945242,0.04584364,90779.0,90768.0,0.01101709]
[1768043945447,0.13215568,90780.0,90770.0,0.01101685]
[1768043946854,0.13215568,90780.0,90771.0,0.01101673]
[1768043947048,0.13215568,90780.0,90770.0,0.01101685]
[1768043947854,0.13215568,90780.0,90771.0,0.01101673]
[1768043949449,0.13215568,90780.0,90772.0,0.01101661]
[1768043951348,0.13215568,90780.0,90771.0,0.01101673]
[1768043951722,0.13215568,90780.0,90772.0,0.01101661]
[1768043952800,0.13215568,90780.0,90771.0,0.01101673]
[1768043956485,0.13215568,90780.0,90772.0,0.01101661]
[1768043956692,0.13215568,90780.0,90771.0,0.01101673]
[1768043956872,0.13215568,90780.0,90772.0,0.01101661]
[1768043957192,0.13215568,90780.0,90771.0,0.01101673]
[1768043958888,0.13215568,90780.0,90772.0,0.01101661]
[1768043959900,0.13215568,90780.0,90771.0,0.01101673]
[1768043960764,0.13215568,90780.0,90770.0,0.01101685]
[1768043961017,0.13215568,90780.0,90769.0,0.01101697]
[1768043961825,0.13215568,90780.0,90770.0,0.01101685]
[1768043962231,0.13215568,90780.0,90769.0,0.01101697]
[1768043963003,0.13215568,90780.0,90770.0,0.01101685]
[1768043963554,0.13215568,90780.0,90771.0,0.01101673]
[1768043964123,0.13215568,90780.0,90770.0,0.01101685]
[1768043965074,0.13215568,90780.0,90771.0,0.01101673]
[1768043967863,0.13215568,90780.0,90770.0,0.01101685]
[1768043969198,0.13215568,90780.0,90771.0,0.01101673]
[1768043971495,0.13215568,90780.0,90772.0,0.01101661]
[1768043972031,0.13215568,90780.0,90773.0,0.01101649]
[1768043972198,0.13215568,90780.0,90772.0,0.01101661]
[1768043972432,0.13215568,90780.0,90773.0,0.01101649]
[1768043972610,0.02204,90779.0,90773.0,0.01101649]
[1768043973440,0.02204,90779.0,90768.0,0.06015807]
[1768043973607,0.02204,90779.0,90768.0,0.11524353]
[1768043974026,0.02204,90779.0,90768.0,0.06015807]
[1768043974336,0.02204,90778.0,90768.0,0.06015807]
[1768043974501,0.02204,90778.0,90769.0,0.01101697]
[1768043974702,0.02204,90778.0,90768.0,0.04914098]
[1768043977139,0.02204,90778.0,90768.0,0.06015807]
[1768043978142,0.02204,90778.0,90768.0,0.04914098]
[1768043979636,0.13215568,90780.0,90769.0,0.01101697]
[1768043979999,0.02204,90777.0,90769.0,0.01101697]
[1768043981035,0.02204,90777.0,90770.0,0.01101685]
[1768043981199,0.04662896,90776.0,90769.0,0.01101697]
[1768043981905,0.04662896,90776.0,90768.0,0.01101709]
[1768043982610,0.04662896,90776.0,90769.0,0.01101697]
[1768043983060,0.04662896,90776.0,90768.0,0.01101709]
[1768043983957,0.04662896,90776.0,90769.0,0.01101697]
[1768043984128,0.04662896,90776.0,90768.0,0.01101709]
[1768043984350,0.04662896,90776.0,90769.0,0.01101697]
[1768043985444,0.04662896,90776.0,90770.0,0.01101685]
[1768043985639,0.04662896,90776.0,90769.0,0.01101697]
[1768043986344,0.02204,90777.0,90769.0,0.01101697]
[1768043986953,0.02204,90777.0,90770.0,0.01101685]
[1768043987383,0.02204,90777.0,90769.0,0.01101697]
[1768043989410,0.02204,90777.0,90767.0,4.257e-05]
[1768043989636,0.02204,90777.0,90767.0,0.01105978]
[1768043989864,0.02204,90777.0,90768.0,0.01101709]
[1768043990916,0.02204,90777.0,90767.0,0.01105978]
[1768043993262,0.02204,90777.0,90768.0,0.01101709]
[1768043993475,0.02204,90777.0,90769.0,0.01101697]
[1768043993877,0.02204,90777.0,90768.0,0.01101709]
[1768043994082,0.02204,90777.0,90769.0,0.01101697]
[1768043995018,0.02204,90777.0,90768.0,0.01101709]
[1768043995427,0.02204,90777.0,90767.0,4.257e-05]
[1768043996236,0.02204,90777.0,90767.0,0.01105978]
[1768043996453,0.02204,90777.0,90767.0,4.257e-05]
[1768044001226,0.02204,90777.0,90767.0,0.04867665]
[1768044001539,0.02204,90777.0,90767.0,0.05969386]
[1768044002442,0.02204,90777.0,90767.0,0.04867665]
[1768044002740,0.02204,90777.0,90767.0,0.05969386]
[1768044002941,0.02204,90777.0,90767.0,0.04867665]
[1768044004642,0.02204,90777.0,90767.0,0.05969386]
[1768044005486,0.02204,90777.0,90767.0,0.04867665]
[1768044005886,0.02204,90777.0,90767.0,0.05969386]
[1768044006187,0.02204,90777.0,90767.0,0.04867665]
[1768044006740,0.02204,90777.0,90767.0,0.05969386]
[1768044006965,0.02204,90777.0,90767.0,0.04867665]
[1768044008575,0.02204,90777.0,90767.0,0.05969386]
[1768044012917,0.02204,90777.0,90767.0,0.04867665]
[1768044014311,0.02204,90777.0,90767.0,0.05969386]
[1768044014783,0.02204,90777.0,90767.0,0.04867665]
[1768044017860,0.02204,90777.0,90767.0,0.05969386]
[1768044018279,0.022,90777.0,90767.0,0.05969386]
[1768044020107,0.022,90777.0,90767.0,0.04867665]
[1768044024080,0.022,90777.0,90767.0,0.05969386]
[1768044024561,0.022,90777.0,90768.0,0.01101709]
[1768044025326,0.022,90777.0,90767.0,0.05969386]
[1768044026123,0.022,90777.0,90768.0,0.01101709]
[1768044026589,0.022,90777.0,90767.0,0.05969386]
[1768044026930,0.022,90777.0,90768.0,0.01101709]
[1768044027135,0.022,90777.0,90767.0,0.05969386]
[1768044027812,0.022,90777.0,90768.0,0.01101709]
[1768044028458,0.022,90777.0,90767.0,0.05969386]
[1768044029242,0.022,90777.0,90768.0,0.01101709]
[1768044029862,0.022,90777.0,90767.0,0.05969386]
[1768044030261,0.022,90777.0,90768.0,0.01101709]
[1768044030597,0.022,90777.0,90767.0,0.05969386]
[1768044033439,0.022,90777.0,90768.0,0.01101709]
[1768044033807,0.022,90777.0,90767.0,0.05969386]
[1768044034210,0.022,90777.0,90768.0,0.01101709]
[1768044034415,0.022,90777.0,90769.0,0.01101697]
[1768044035056,0.022,90777.0,90768.0,0.05807025]
[1768044035282,0.022,90777.0,90769.0,0.01101697]
[1768044035484,0.02204,90776.0,90769.0,0.01101697]
[1768044035886,0.02204,90776.0,90768.0,0.05807025]
[1768044036046,0.13215568,90780.0,90769.0,0.01101697]
[1768044036251,0.02204,90779.0,90769.0,0.01101697]
[1768044036478,0.02204,90779.0,90768.0,0.05807025]
[1768044037221,0.02204,90779.0,90769.0,0.01101697]
[1768044037419,0.02204,90779.0,90770.0,0.01101685]
[1768044038914,0.13215568,90780.0,90770.0,0.01101685]
[1768044039217,0.02204,90779.0,90770.0,0.01101685]
[1768044039520,0.02204,90778.0,90770.0,0.01101685]
[1768044039864,0.13215568,90780.0,90770.0,0.01101685]
[1768044040063,0.02204,90779.0,90769.0,0.01101697]
[1768044040267,0.02204,90779.0,90770.0,0.01101685]
[1768044040477,0.13215568,90780.0,90770.0,0.01101685]
[1768044040814,0.02204,90779.0,90770.0,0.01101685]
[1768044041153,0.13215568,90780.0,90770.0,0.01101685]
[1768044041308,0.02204,90778.0,90770.0,0.01101685]
[1768044042842,0.02204,90778.0,90771.0,0.01101673]
[1768044043016,0.02204,90778.0,90770.0,0.01101685]
[1768044043636,0.02204,90778.0,90771.0,0.04705316]
[1768044043841,0.02204,90778.0,90773.0,0.04705316]
[1768044045059,0.13215568,90780.0,90773.0,0.04705316]
[1768044045209,0.02204,90777.0,90773.0,0.04705316]
[1768044046444,0.13215568,90780.0,90773.0,0.04705316]
[1768044046643,0.02204,90776.0,90773.0,0.04705316]
[1768044047165,0.02204,90775.0,90773.0,0.04705316]
[1768044047471,0.02204,90774.0,90773.0,0.04705316]
[1768044047668,0.021041,90774.0,90772.0,0.04705316]
[1768044048043,0.13215568,90780.0,90772.0,0.04705316]
[1768044048240,0.02204,90779.0,90772.0,0.04705316]
[1768044050217,0.02204,90779.0,90772.0,0.05806977]
[1768044050614,0.02204,90779.0,90772.0,0.04705316]
[1768044050778,0.02204,90779.0,90772.0,0.05806977]
[1768044051818,0.02204,90779.0,90767.0,0.05671971]
[1768044052169,0.02204,90779.0,90768.0,0.04565993]
[1768044052566,0.13215568,90780.0,90768.0,0.04565993]
[1768044052823,0.02204,90779.0,90768.0,0.04565993]
[1768044054575,0.02204,90779.0,90768.0,0.04561471]
[1768044054793,0.03305576,90779.0,90768.0,0.04561471]
[1768044055490,0.02204,90779.0,90768.0,0.04561471]
[1768044058674,0.02204,90779.0,90768.0,0.0566318]
[1768044059496,0.02204,90779.0,90768.0,0.04561471]
[1768044062594,0.02204,90779.0,90770.0,0.04565993]
[1768044063196,0.02204,90779.0,90770.0,0.05667678]
[1768044063395,0.02204,90779.0,90770.0,0.04565993]
[1768044063563,0.02204,90779.0,90770.0,0.05667678]
[1768044063966,0.02204,90779.0,90772.0,0.04630289]
[1768044066894,0.02204,90779.0,90767.0,4.257e-05]
[1768044067014,0.02204,90779.0,90767.0,0.04634546]
[1768044068052,0.02204,90779.0,90769.0,0.05731986]
[1768044068376,0.02204,90779.0,90769.0,0.04630289]
[1768044069360,0.03305576,90779.0,90769.0,0.04630289]
[1768044070368,0.02204,90779.0,90769.0,0.04630289]
[1768044071906,0.02204,90779.0,90767.0,4.257e-05]
[1768044072116,0.03305576,90779.0,90767.0,4.257e-05]
[1768044072785,0.02204,90779.0,90767.0,0.04634546]
[1768044074683,0.02204,90779.0,90767.0,0.05736267]
[1768044075021,0.02204,90779.0,90767.0,0.04634546]
[1768044075923,0.02204,90779.0,90767.0,0.05736267]
[1768044076523,0.02204,90779.0,90767.0,0.04634546]
[1768044076685,0.02204,90779.0,90767.0,0.05736267]
[1768044077020,0.02204,90779.0,90770.0,0.04630289]
[1768044079148,0.05510297,90779.0,90770.0,0.04630289]
[1768044079765,0.05510297,90779.0,90770.0,0.04623465]
[1768044081381,0.05510297,90779.0,90770.0,0.0572515]
[1768044081945,0.05510297,90779.0,90770.0,0.04623465]
[1768044083213,0.05510297,90779.0,90770.0,0.0572515]
[1768044083770,0.05510297,90779.0,90770.0,0.04623465]
[1768044084308,0.05510297,90779.0,90770.0,0.0572515]
[1768044084723,0.05510297,90779.0,90770.0,0.04623465]
[1768044085116,0.05510297,90779.0,90770.0,0.0572515]
[1768044086094,0.05510297,90779.0,90770.0,0.04623465]
[1768044086769,0.05510297,90779.0,90770.0,0.04616641]
[1768044087564,0.05510297,90779.0,90775.0,0.04630289]
[1768044088114,0.03306297,90779.0,90778.0,0.04630289]
[1768044088318,0.05510297,90779.0,90778.0,0.04630289]
[1768044088565,0.02204,90779.0,90778.0,0.04630289]
[1768044089414,0.02254625,90779.0,90778.0,0.04630289]
[1768044090691,0.02254625,90779.0,90776.0,0.05731901]
[1768044091188,0.02254625,90779.0,90776.0,0.04630289]
[1768044091390,0.02254625,90779.0,90776.0,0.05731901]
[1768044093577,0.03306297,90781.0,90779.0,0.04645069]
[1768044093804,0.00021069,90797.0,90782.0,0.05507698]
[1768044094005,0.02204,90794.0,90783.0,0.01101527]
[1768044094177,0.05530426,90797.0,90783.0,0.01101527]
[1768044094178,0.03306041,90791.0,90785.0,0.01101503]
[1768044094381,0.02204,90790.0,90784.0,0.04645069]
[1768044094608,0.02204,90790.0,90784.0,0.05746584]
[1768044094983,0.16521387,90795.0,90789.0,0.04645069]
[1768044095185,0.00021069,90797.0,90789.0,0.04645069]
[1768044095589,0.02204,90796.0,90784.0,0.05746584]
[1768044096124,0.02204,90796.0,90788.0,0.04645069]
[1768044096625,0.02204,90796.0,90788.0,0.04638245]
[1768044097967,0.02204,90796.0,90788.0,0.05739712]
[1768044098143,0.02204,90796.0,90788.0,0.04638245]
[1768044098379,0.04938767,90795.0,90787.0,0.01101479]
[1768044098876,0.02204,90796.0,90785.0,0.05746572]
[1768044099466,0.02204,90796.0,90788.0,0.04645069]
[1768044099823,0.02204,90796.0,90788.0,0.05746536]
[1768044100477,0.04938767,90795.0,90789.0,0.01101455]
[1768044100654,0.04938767,90794.0,90792.0,0.01101418]
[1768044100865,0.02204,90795.0,90793.0,0.05507032]
[1768044101117,0.02204,90795.0,90792.0,0.06608453]
[1768044101469,0.04938767,90794.0,90792.0,0.01101418]
[1768044102973,0.00021069,90797.0,90792.0,0.01101418]
[1768044103285,0.04959836,90797.0,90792.0,0.01101418]
[1768044103496,0.04959836,90797.0,90793.0,0.01101406]
[1768044103707,0.04959836,90797.0,90792.0,0.01101418]
[1768044104108,0.04959836,90797.0,90786.0,0.01101491]
[1768044104347,0.04959836,90797.0,90785.0,0.01101503]
[1768044104578,0.04959836,90797.0,90789.0,0.01101455]
[1768044104879,0.04959836,90797.0,90788.0,0.01101467]
[1768044105089,0.00021069,90797.0,90789.0,0.04645069]
[1768044107039,0.00021069,90797.0,90789.0,0.05746524]
[1768044107319,0.00021069,90797.0,90789.0,0.04645069]
[1768044107660,0.00021069,90797.0,90789.0,0.05746524]
[1768044108064,0.00021069,90797.0,90789.0,0.04645069]
[1768044108287,0.00021069,90797.0,90789.0,0.05746524]
[1768044108474,0.00021069,90797.0,90789.0,0.04645069]
[1768044110110,0.00021069,90797.0,90789.0,0.05746524]
[1768044110542,0.00021069,90797.0,90794.0,0.04645069]
[1768044120958,0.00021069,90797.0,90794.0,0.04640571]
[1768044121168,0.01101442,90805.0,90794.0,0.04640571]
[1768044121169,0.01101442,90805.0,90799.0,0.01101333]
[1768044121374,0.04852843,90803.0,90800.0,0.01101321]
[1768044121543,0.04852843,90803.0,90801.0,0.05506547]
[1768044121887,0.02204,90805.0,90802.0,0.05681758]
[1768044122125,0.02204,90805.0,90802.0,0.04580461]
[1768044125438,0.02204,90805.0,90802.0,0.04571464]
[1768044126355,0.0001506,90806.0,90802.0,0.04571464]
[1768044127885,0.02169114,90811.0,90806.0,0.04682799]
[1768044131784,0.02204,90811.0,90806.0,0.04682799]
[1768044131984,0.02204,90811.0,90801.0,0.04682799]
[1768044132404,0.01101176,90812.0,90801.0,0.04682799]
[1768044132601,0.02204,90811.0,90801.0,0.04682799]
[1768044133114,0.01101176,90812.0,90801.0,0.04682799]
[1768044133324,0.02204,90810.0,90801.0,0.04682799]
[1768044134246,0.033052,90810.0,90801.0,0.04682799]
[1768044134782,0.000999,90801.0,90794.0,0.02204]
[1768044135013,0.000999,90801.0,90795.0,0.04682799]
[1768044135194,0.01101236,90807.0,90795.0,0.04682799]
[1768044135396,0.01101224,90808.0,90795.0,0.04682799]
[1768044135594,0.01101212,90809.0,90795.0,0.05784181]
[1768044135793,0.033052,90810.0,90796.0,0.0110137]
[1768044136010,0.01101212,90809.0,90796.0,0.05784169]
[1768044137263,0.033052,90810.0,90796.0,0.05784169]
[1768044137763,0.01101212,90809.0,90795.0,0.01101382]
[1768044138410,0.01101224,90808.0,90795.0,0.01101382]
[1768044139423,0.01101212,90809.0,90795.0,0.01101382]
[1768044139623,0.01101224,90808.0,90794.0,0.01101394]
[1768044139833,0.01101224,90808.0,90795.0,0.01101382]
[1768044140230,0.01101224,90808.0,90793.0,0.01101406]
[1768044140231,0.0455534,90805.0,90793.0,0.01101406]
[1768044142190,0.0455534,90805.0,90792.0,0.01101418]
[1768044142365,0.04590501,90805.0,90792.0,0.01101418]
[1768044143163,0.05691761,90805.0,90790.0,0.03305442]
[1768044143369,0.04590501,90805.0,90792.0,0.01101418]
[1768044144361,0.05691761,90805.0,90791.0,0.0110143]
[1768044144953,0.0455534,90803.0,90791.0,0.0110143]
[1768044145155,0.0455534,90803.0,90789.0,0.01481455]
[1768044145376,0.0455534,90803.0,90790.0,0.01101442]
[1768044145573,0.0455534,90801.0,90789.0,0.0038]
[1768044145899,0.0455534,90799.0,90789.0,0.01481455]
[1768044147907,0.0455534,90799.0,90789.0,0.0038]
[1768044148317,0.0455534,90799.0,90789.0,0.01481455]
[1768044148563,0.0455534,90796.0,90789.0,0.0038]
[1768044148748,0.0565671,90796.0,90789.0,0.0038]
[1768044148949,0.0455534,90796.0,90789.0,0.0038]
[1768044149813,0.0565671,90796.0,90789.0,0.0038]
[1768044150017,0.0455534,90796.0,90789.0,0.0038]
[1768044150692,0.05656722,90795.0,90789.0,0.002801]
[1768044151103,0.0455534,90793.0,90789.0,0.002801]
[1768044153317,0.0455534,90793.0,90783.0,0.0001506]
[1768044154210,0.0455534,90793.0,90783.0,0.01116587]
[1768044154416,0.0455534,90793.0,90783.0,0.0001506]
[1768044156062,0.0455534,90793.0,90783.0,0.01116587]
[1768044157075,0.0455534,90793.0,90783.0,0.0001506]
[1768044157747,0.0455534,90793.0,90783.0,0.01116587]
[1768044158799,0.0455534,90793.0,90784.0,0.01101515]
[1768044159548,0.0455534,90793.0,90783.0,0.01116587]
[1768044159764,0.0455534,90793.0,90783.0,0.0001506]
[1768044160707,0.0455534,90793.0,90784.0,0.01101515]
[1768044161046,0.0455534,90793.0,90783.0,0.01116587]
[1768044161498,0.0455534,90793.0,90784.0,0.01101515]
[1768044161655,0.0455534,90793.0,90783.0,0.01116587]
[1768044162107,0.0455534,90793.0,90784.0,0.01101515]
[1768044163949,0.0455534,90793.0,90783.0,0.01116587]
[1768044164340,0.0455534,90793.0,90784.0,0.01101515]
[1768044164708,0.0455534,90793.0,90783.0,0.01116587]